fUST/lending_fUST_20250722
["ID","MTS","AMOUNT","RATE_DAILY","PERIOD"]
[373865179,1753131046477,-460.0,0.00019362,2]
[373865181,1753131046486,-460.0,0.00019362,2]
[373865183,1753131046495,-460.0,0.00019362,2]
[373865185,1753131046505,-460.0,0.00019362,2]
[373865187,1753131046514,-460.0,0.00019362,2]
[373865189,1753131046524,-1125.11,0.00019362,2]
[373865191,1753131046533,-460.0,0.00019362,2]
[373865201,1753131046623,-460.0,0.00019362,2]
[373865203,1753131046632,-460.0,0.00019362,2]
[373865205,1753131046642,-460.0,0.00019362,2]
[373865207,1753131046652,-460.0,0.00019362,2]
[373865209,1753131046662,-337.0,0.00019371,2]
[373865211,1753131046671,-500.0,0.00019373,2]
[373865213,1753131046681,-500.0,0.0001938,2]
[373865215,1753131046692,-460.0,0.00019443,2]
[373865217,1753131046701,-498.04747012,0.00019444,2]
[373865219,1753131046711,-460.0,0.00019444,2]
[373865221,1753131046720,-460.0,0.00019444,2]
[373865223,1753131046730,-2633.81,0.00019444,2]
[373865225,1753131046740,-460.0,0.00019444,2]
[373865227,1753131046750,-460.0,0.00019444,2]
[373865229,1753131046759,-460.0,0.00019444,2]
[373865231,1753131046772,-1680.81,0.00019444,2]
[373865233,1753131046781,-465.19038475,0.00019444,2]
[373865235,1753131046791,-460.0,0.00019444,2]
[373865237,1753131046800,-460.0,0.00019444,2]
[373865239,1753131046810,-786.93,0.00019444,2]
[373865241,1753131046819,-460.0,0.00019444,2]
[373865243,1753131046829,-460.0,0.00019444,2]
[373865245,1753131046838,-460.0,0.00019444,2]
[373865246,1753131046848,-460.0,0.00019444,2]
[373865248,1753131046857,-460.0,0.00019444,2]
[373865250,1753131046867,-460.73549149,0.00019444,2]
[373865252,1753131046876,-460.0,0.00019444,2]
[373865254,1753131046885,-296.72664884,0.00019444,2]
[373865256,1753131046895,-460.0,0.00019444,2]
[373865258,1753131046904,-346.75894481,0.00019444,2]
[373865260,1753131046914,-460.0,0.00019444,2]
[373865262,1753131046923,-460.0,0.00019444,2]
[373865264,1753131046932,-472.66320675,0.00019444,2]
[373865266,1753131046941,-460.0,0.00019446,2]
[373865268,1753131046950,-460.0,0.00019446,2]
[373865270,1753131046960,-460.0,0.00019446,2]
[373865272,1753131046969,-460.0,0.00019446,2]
[373865274,1753131046978,-460.0,0.00019446,2]
[373865275,1753131046987,-460.0,0.00019446,2]
[373865277,1753131046996,-460.0,0.00019446,2]
[373865279,1753131047006,-460.0,0.00019446,2]
[373865281,1753131047015,-460.0,0.00019446,2]
[373865283,1753131047024,-460.0,0.00019446,2]
[373865285,1753131047032,-460.0,0.00019446,2]
[373865287,1753131047042,-460.0,0.00019446,2]
[373865289,1753131047051,-460.0,0.00019446,2]
[373865291,1753131047060,-460.0,0.00019446,2]
[373865293,1753131047069,-460.0,0.00019446,2]
[373865295,1753131047079,-460.0,0.00019446,2]
[373865297,1753131047089,-460.0,0.00019446,2]
[373865299,1753131047098,-460.0,0.00019446,2]
[373865301,1753131047108,-460.0,0.00019446,2]
[373865302,1753131047117,-460.0,0.00019446,2]
[373865304,1753131047126,-460.0,0.00019446,2]
[373865306,1753131047135,-460.0,0.00019446,2]
[373865308,1753131047145,-460.0,0.00019446,2]
[373865310,1753131047155,-2256.48,0.00019446,2]
[373865312,1753131047164,-460.0,0.00019446,2]
[373865314,1753131047177,-460.0,0.00019446,2]
[373865316,1753131047186,-184.72,0.00019446,2]
[373865318,1753131047196,-460.0,0.00019446,2]
[373865320,1753131047206,-460.0,0.00019446,2]
[373865322,1753131047217,-460.0,0.00019446,2]
[373865324,1753131047226,-460.0,0.00019446,2]
[373865326,1753131047235,-460.0,0.00019446,2]
[373865328,1753131047245,-224.61544786,0.00019446,2]
[373865329,1753131047255,-460.0,0.00019446,2]
[373865331,1753131047264,-460.0,0.00019446,2]
[373865333,1753131047274,-1016.39,0.00019446,2]
[373865335,1753131047284,-460.0,0.00019446,2]
[373865337,1753131047293,-460.0,0.00019446,2]
[373865339,1753131047302,-460.0,0.00019446,2]
[373865341,1753131047311,-460.0,0.00019446,2]
[373865343,1753131047321,-460.0,0.00019446,2]
[373865345,1753131047330,-1644.1,0.00019446,2]
[373865347,1753131047339,-460.0,0.00019446,2]
[373865349,1753131047349,-460.0,0.00019446,2]
[373865351,1753131047358,-460.0,0.00019446,2]
[373865352,1753131047366,-460.0,0.00019446,2]
[373865353,1753131047375,-460.0,0.00019446,2]
[373865354,1753131047384,-460.0,0.00019448,2]
[373865355,1753131047394,-460.0,0.00019448,2]
[373865356,1753131047404,-460.0,0.00019448,2]
[373865357,1753131047414,-460.0,0.00019448,2]
[373865358,1753131047422,-460.0,0.00019448,2]
[373865359,1753131047431,-460.0,0.00019448,2]
[373865360,1753131047440,-460.0,0.00019448,2]
[373865361,1753131047449,-460.0,0.00019448,2]
[373865362,1753131047458,-460.0,0.00019448,2]
[373865363,1753131047467,-460.0,0.00019448,2]
[373865364,1753131047475,-460.0,0.00019448,2]
[373865365,1753131047484,-1113.78,0.00019448,2]
[373865366,1753131047493,-874.97,0.00019448,2]
[373865367,1753131047502,-500.0,0.00019448,2]
[373865368,1753131047511,-500.0,0.00019448,2]
[373865369,1753131047520,-500.0,0.00019448,2]
[373865370,1753131047528,-570.27931467,0.00019448,2]
[373865371,1753131047537,-460.0,0.00019448,2]
[373865372,1753131047546,-460.0,0.00019449,2]
[373865373,1753131047555,-460.0,0.00019449,2]
[373865374,1753131047564,-460.0,0.00019449,2]
[373865375,1753131047573,-292.94,0.00019449,2]
[373865376,1753131047582,-151.0,0.00019449,2]
[373865377,1753131047591,-151.0,0.00019449,2]
[373865378,1753131047600,-460.0,0.00019449,2]
[373865379,1753131047609,-460.0,0.00019449,2]
[373865381,1753131047618,-151.0,0.00019449,2]
[373865383,1753131047627,-460.0,0.00019449,2]
[373865385,1753131047636,-460.0,0.00019449,2]
[373865387,1753131047646,-460.0,0.00019449,2]
[373865389,1753131047659,-460.0,0.00019449,2]
[373865391,1753131047668,-460.0,0.00019449,2]
[373865393,1753131047679,-460.0,0.00019449,2]
[373865395,1753131047689,-151.0,0.00019449,2]
[373865397,1753131047699,-460.0,0.00019449,2]
[373865399,1753131047709,-222.301912,0.00019449,2]
[373865401,1753131047719,-460.0,0.00019449,2]
[373865403,1753131047728,-151.0,0.00019449,2]
[373865405,1753131047738,-460.0,0.00019449,2]
[373865407,1753131047747,-265.56301,0.00019449,2]
[373865409,1753131047756,-265.56301,0.00019449,2]
[373865411,1753131047765,-472.58,0.00019449,2]
[373865413,1753131047775,-460.0,0.00019449,2]
[373865415,1753131047784,-249.1806,0.00019449,2]
[373865417,1753131047793,-249.1806,0.00019449,2]
[373865419,1753131047802,-460.0,0.00019449,2]
[373865421,1753131047811,-460.0,0.00019449,2]
[373865422,1753131047820,-460.0,0.00019449,2]
[373865425,1753131047830,-460.0,0.00019449,2]
[373865427,1753131047839,-460.0,0.00019449,2]
[373865428,1753131047849,-460.0,0.00019449,2]
[373865431,1753131047859,-460.0,0.00019449,2]
[373865433,1753131047869,-1192.16,0.00019449,2]
[373865434,1753131047878,-460.0,0.00019449,2]
[373865436,1753131047887,-265.56301,0.0001945,2]
[373865438,1753131047896,-265.563008,0.0001945,2]
[373865440,1753131047910,-151.0,0.00019451,2]
[373865442,1753131047919,-151.0,0.00019451,2]
[373865444,1753131047929,-151.0,0.00019451,2]
[373865446,1753131047938,-170.214866,0.00019451,2]
[373865449,1753131047947,-151.0,0.00019451,2]
[373865450,1753131047956,-151.0,0.00019451,2]
[373865452,1753131047965,-151.0,0.00019451,2]
[373865454,1753131047974,-249.1806,0.00019451,2]
[373865456,1753131047984,-249.180603,0.00019451,2]
[373865458,1753131047993,-500.0,0.0001947,2]
[373865460,1753131048002,-151.0,0.00019471,2]
[373865462,1753131048011,-151.0,0.00019471,2]
[373865464,1753131048020,-254.317334,0.00019473,2]
[373865466,1753131048029,-460.0,0.00019478,2]
[373865468,1753131048039,-460.0,0.00019478,2]
[373865470,1753131048048,-460.0,0.00019478,2]
[373865472,1753131048058,-151.0,0.00019481,2]
[373865474,1753131048067,-151.0,0.00019481,2]
[373865476,1753131048076,-154.642162,0.00019481,2]
[373865478,1753131048086,-154.642162,0.00019481,2]
[373865480,1753131048095,-235.294537,0.00019481,2]
[373865482,1753131048104,-151.0,0.00019481,2]
[373865484,1753131048114,-460.0,0.00019481,2]
[373865486,1753131048125,-460.0,0.00019481,2]
[373865488,1753131048134,-460.0,0.00019481,2]
[373865490,1753131048144,-500.0,0.00019481,2]
[373865492,1753131048155,-2611.55,0.00019481,2]
[373865494,1753131048165,-547.75,0.00019481,2]
[373865496,1753131048178,-460.0,0.00019481,2]
[373865498,1753131048187,-151.0,0.00019482,2]
[373865500,1753131048197,-151.0,0.00019482,2]
[373865502,1753131048207,-151.0,0.00019482,2]
[373865504,1753131048216,-151.0,0.00019482,2]
[373865506,1753131048226,-151.0,0.00019482,2]
[373865508,1753131048235,-207.934734,0.00019483,2]
[373865510,1753131048245,-207.934734,0.00019483,2]
[373865512,1753131048256,-151.0,0.00019483,2]
[373865514,1753131048266,-151.982926,0.00019483,2]
[373865516,1753131048276,-151.0,0.00019483,2]
[373865518,1753131048284,-151.0,0.00019483,2]
[373865520,1753131048294,-151.0,0.00019483,2]
[373865522,1753131048303,-154.642162,0.00019483,2]
[373865524,1753131048313,-154.642162,0.00019483,2]
[373865526,1753131048322,-363.6,0.00019483,2]
[373865528,1753131048331,-1281.42,0.00019484,2]
[373865530,1753131048340,-460.0,0.00019484,2]
[373865532,1753131048349,-1068.78,0.00019484,2]
[373865534,1753131048359,-667.47,0.00019484,2]
[373865544,1753131048443,-806.23,0.00019484,2]
[373865546,1753131048453,-460.0,0.00019484,2]
[373865548,1753131048462,-460.0,0.00019484,2]
[373865550,1753131048471,-207.934734,0.00019488,2]
[373865552,1753131048481,-207.934734,0.00019488,2]
[373865554,1753131048490,-151.0,0.00019496,2]
[373865556,1753131048499,-287.105301,0.00019496,2]
[373865558,1753131048509,-2281.20969444,0.00019531,2]
[373865560,1753131048518,-274.0,0.00019572,2]
[373865562,1753131048528,-500.0,0.0001959,2]
[373865564,1753131048537,-500.0,0.0001959,2]
[373865566,1753131048547,-274.0,0.00019605,2]
[373865568,1753131048556,-274.0,0.0001962,2]
[373865570,1753131048566,-460.0,0.00019636,2]
[373865572,1753131048575,-460.0,0.00019636,2]
[373865574,1753131048584,-460.0,0.00019636,2]
[373865575,1753131048594,-460.0,0.00019636,2]
[373865577,1753131048603,-1125.11,0.00019636,2]
[373865579,1753131048613,-460.0,0.00019636,2]
[373865581,1753131048622,-261.80326504,0.00019636,2]
[373865583,1753131048632,-321.51960293,0.00019636,2]
[373865585,1753131048640,-151.0,0.00019639,2]
[373865587,1753131048650,-151.0,0.00019639,2]
[373865589,1753131048659,-151.0,0.00019639,2]
[373865591,1753131048668,-151.0,0.00019639,2]
[373865593,1753131048677,-151.0,0.00019658,2]
[373865595,1753131048687,-154.642162,0.00019658,2]
[373865597,1753131048697,-154.642162,0.00019658,2]
[373865599,1753131048706,-151.0,0.0001969,2]
[373865601,1753131048716,-151.0,0.0001969,2]
[373865603,1753131048725,-274.0,0.00019693,2]
[373865605,1753131048735,-460.0,0.00019717,2]
[373865607,1753131048745,-2633.81,0.00019718,2]
[373865609,1753131048754,-460.0,0.00019718,2]
[373865612,1753131048774,-460.0,0.00019718,2]
[373865614,1753131048784,-1680.81,0.00019718,2]
[373865616,1753131048795,-460.0,0.00019718,2]
[373865618,1753131048804,-786.93,0.00019718,2]
[373865620,1753131048815,-209.69503604,0.00019718,2]
[373865623,1753131048825,-460.0,0.00019718,2]
[373865625,1753131048835,-460.0,0.00019718,2]
[373865627,1753131048845,-460.0,0.00019718,2]
[373865629,1753131048855,-531.65135666,0.0001972,2]
[373865631,1753131048865,-460.0,0.0001972,2]
[373865633,1753131048874,-460.0,0.0001972,2]
[373865635,1753131048885,-609.84,0.0001972,2]
[373865637,1753131048894,-460.0,0.0001972,2]
[373865639,1753131048905,-460.0,0.0001972,2]
[373865641,1753131048915,-460.0,0.0001972,2]
[373865643,1753131048925,-460.0,0.0001972,2]
[373865645,1753131048935,-460.0,0.0001972,2]
[373865647,1753131048944,-460.0,0.0001972,2]
[373865649,1753131048954,-460.0,0.0001972,2]
[373865651,1753131048963,-460.0,0.0001972,2]
[373865653,1753131048973,-460.0,0.0001972,2]
[373865655,1753131048982,-460.0,0.0001972,2]
[373865657,1753131048993,-460.0,0.0001972,2]
[373865659,1753131049002,-2256.48,0.0001972,2]
[373865661,1753131049012,-460.0,0.0001972,2]
[373865663,1753131049022,-247.66182512,0.0001972,2]
[373865665,1753131049032,-518.67455594,0.0001972,2]
[373865667,1753131049042,-460.0,0.0001972,2]
[373865669,1753131049052,-460.0,0.0001972,2]
[373865671,1753131049061,-460.0,0.0001972,2]
[373865673,1753131049071,-460.0,0.0001972,2]
[373865675,1753131049080,-1016.39,0.0001972,2]
[373865677,1753131049090,-460.0,0.0001972,2]
[373865679,1753131049101,-460.0,0.0001972,2]
[373865681,1753131049111,-1644.1,0.0001972,2]
[373865683,1753131049121,-460.0,0.0001972,2]
[373865685,1753131049132,-460.0,0.0001972,2]
[373865688,1753131049142,-460.0,0.0001972,2]
[373865690,1753131049152,-460.0,0.0001972,2]
[373865692,1753131049162,-502.5133173,0.00019721,2]
[373865694,1753131049172,-1000.0,0.00019721,2]
[373865696,1753131049183,-320.15973591,0.00019721,2]
[373865698,1753131049192,-349.29328978,0.00019721,2]
[373865699,1753131049202,-1000.0,0.00019721,2]
[373865701,1753131049211,-500.0,0.00019721,2]
[373865703,1753131049222,-1000.0,0.00019721,2]
[373865706,1753131049231,-500.0,0.00019721,2]
[373865708,1753131049241,-500.0,0.00019721,2]
[373865710,1753131049251,-460.0,0.00019722,2]
[373865712,1753131049262,-460.0,0.00019722,2]
[373865714,1753131049271,-512.62,0.00019722,2]
[373865716,1753131049282,-460.0,0.00019722,2]
[373865718,1753131049291,-460.0,0.00019722,2]
[373865720,1753131049301,-460.0,0.00019722,2]
[373865722,1753131049310,-460.0,0.00019722,2]
[373865724,1753131049319,-460.0,0.00019722,2]
[373865726,1753131049329,-1113.78,0.00019722,2]
[373865728,1753131049339,-874.97,0.00019722,2]
[373865730,1753131049348,-460.0,0.00019722,2]
[373865732,1753131049358,-460.0,0.00019723,2]
[373865734,1753131049367,-287.105301,0.00019723,2]
[373865736,1753131049377,-460.0,0.00019723,2]
[373865738,1753131049392,-460.0,0.00019723,2]
[373865740,1753131049402,-460.0,0.00019723,2]
[373865742,1753131049412,-460.0,0.00019723,2]
[373865744,1753131049422,-460.0,0.00019723,2]
[373865746,1753131049432,-460.0,0.00019723,2]
[373865749,1753131049442,-460.0,0.00019723,2]
[373865751,1753131049452,-460.0,0.00019723,2]
[373865753,1753131049461,-472.58,0.00019723,2]
[373865755,1753131049471,-460.0,0.00019723,2]
[373865757,1753131049480,-460.0,0.00019723,2]
[373865759,1753131049490,-460.0,0.00019723,2]
[373865761,1753131049502,-1192.16,0.00019723,2]
[373865763,1753131049512,-460.0,0.00019723,2]
[373865765,1753131049521,-274.0,0.00019743,2]
[373865767,1753131049532,-207.934734,0.00019746,2]
[373865769,1753131049542,-207.934734,0.00019746,2]
[373865771,1753131049551,-200.0,0.00019754,2]
[373865773,1753131049561,-151.0,0.00019755,2]
[373865775,1753131049571,-151.0,0.00019755,2]
[373865777,1753131049581,-151.0,0.00019755,2]
[373865779,1753131049591,-151.0,0.00019755,2]
[373865781,1753131049600,-151.0,0.00019755,2]
[373865783,1753131049609,-151.0,0.00019755,2]
[373865785,1753131049619,-151.0,0.00019755,2]
[373865787,1753131049629,-287.105297,0.00019755,2]
[373865789,1753131049638,-460.0,0.00019755,2]
[373865791,1753131049648,-460.0,0.00019755,2]
[373865793,1753131049658,-2611.55,0.00019755,2]
[373865795,1753131049668,-547.75,0.00019755,2]
[373865797,1753131049677,-151.0,0.00019756,2]
[373865799,1753131049687,-1500.0,0.00019756,7]
[373865801,1753131049697,-1500.0,0.00019756,7]
[373865803,1753131049706,-1500.0,0.00019756,7]
[373865805,1753131049716,-1500.0,0.00019756,7]
[373865807,1753131049725,-1500.0,0.00019756,7]
[373865809,1753131049735,-1500.0,0.00019756,7]
[373865811,1753131049744,-1500.0,0.00019756,7]
[373865813,1753131049754,-1500.0,0.00019756,7]
[373865815,1753131049763,-1500.0,0.00019756,7]
[373865817,1753131049773,-1500.0,0.00019756,7]
[373865819,1753131049782,-1500.0,0.00019756,7]
[373865821,1753131049792,-1500.0,0.00019756,7]
[373865824,1753131049801,-1500.0,0.00019756,7]
[373865826,1753131049811,-1500.0,0.00019756,7]
[373865828,1753131049820,-1500.0,0.00019756,7]
[373865830,1753131049830,-1500.0,0.00019756,7]
[373865832,1753131049841,-1500.0,0.00019756,7]
[373865834,1753131049851,-1500.0,0.00019756,7]
[373865836,1753131049860,-1372.323946,0.00019756,7]
[373865838,1753131049870,-154.642162,0.00019756,2]
[373865840,1753131049879,-154.642162,0.00019756,2]
[373865842,1753131049888,-12617.54915256,0.00019756,7]
[373865844,1753131049898,-214.60209147,0.00019756,7]
[373865846,1753131049909,-476.51375022,0.00019756,7]
[373865848,1753131049918,-1281.42,0.00019758,2]
[373865850,1753131049927,-460.0,0.00019758,2]
[373865852,1753131049937,-1068.78,0.00019758,2]
[373865854,1753131049946,-667.47,0.00019758,2]
[373865856,1753131049956,-806.23,0.00019758,2]
[373865858,1753131049966,-383.94856345,0.00019758,2]
[373865860,1753131049975,-207.934734,0.00019769,2]
[373865862,1753131049984,-207.934734,0.00019769,2]
[373865864,1753131049994,-151.0,0.00019769,2]
[373865866,1753131050003,-151.0,0.00019769,2]
[373865868,1753131050013,-151.0,0.00019769,2]
[373865870,1753131050022,-151.0,0.00019769,2]
[373865872,1753131050031,-151.0,0.0001977,2]
[373865874,1753131050041,-800.0,0.00019783,2]
[373865876,1753131050050,-500.0,0.0001979,2]
[373865878,1753131050060,-500.0,0.0001979,2]
[373865880,1753131050069,-500.0,0.0001979,2]
[373865882,1753131050079,-500.0,0.0001979,2]
[373865884,1753131050088,-207.628748,0.00019801,2]
[373865886,1753131050098,-167.199311,0.00019801,2]
[373865897,1753131050206,-151.0,0.00019821,2]
[373865899,1753131050219,-154.642162,0.00019821,2]
[373865901,1753131050228,-154.642162,0.00019821,2]
[373865903,1753131050238,-280.55485677,0.00019853,2]
[373865905,1753131050249,-25000.0,0.00019853,2]
[373865906,1753131050258,-160.0,0.00019865,2]
[373865908,1753131050267,-525.99222921,0.00019865,2]
[373865910,1753131050276,-160.0,0.00019867,2]
[373865912,1753131050286,-160.0,0.00019867,2]
[373865914,1753131050295,-160.0,0.00019867,2]
[373865915,1753131050304,-160.0,0.00019867,2]
[373865917,1753131050313,-12617.54915256,0.00019867,2]
[373865919,1753131050323,-215.75719967,0.00019867,2]
[373865921,1753131050332,-231.02460978,0.00019867,2]
[373865922,1753131050341,-160.0,0.00019867,2]
[373865924,1753131050350,-160.0,0.00019867,2]
[373865926,1753131050359,-839.74694734,0.00019867,2]
[373865928,1753131050369,-476.51375022,0.00019867,2]
[373865929,1753131050379,-160.0,0.00019867,2]
[373865931,1753131050389,-160.0,0.00019867,2]
[373865933,1753131050398,-214.60209147,0.00019867,2]
[373865935,1753131050410,-207.934734,0.000199,2]
[373865937,1753131050419,-207.934734,0.000199,2]
[373865938,1753131050428,-151.0,0.000199,2]
[373865940,1753131050437,-6460.29187732,0.000199,2]
[373865942,1753131050446,-151.0,0.00019901,2]
[373865944,1753131050456,-151.0,0.00019901,2]
[373865945,1753131050465,-151.0,0.00019901,2]
[373865947,1753131050474,-269.665325,0.00019901,2]
[373865949,1753131050483,-151.0,0.00019901,2]
[373865951,1753131050493,-154.642162,0.00019901,2]
[373865952,1753131050501,-154.642162,0.00019901,2]
[373865954,1753131050511,-860.39635563,0.00019909,2]
[373865956,1753131050520,-460.0,0.0001991,2]
[373865957,1753131050530,-528.01,0.0001991,2]
[373865959,1753131050539,-460.0,0.0001991,2]
[373865960,1753131050548,-1125.11,0.0001991,2]
[373865962,1753131050557,-196.37480375,0.0001991,2]
[373865964,1753131050567,-500.0,0.00019919,2]
[373865966,1753131050576,-160.0,0.00019967,2]
[373865967,1753131050586,-207.934734,0.00019973,2]
[373865969,1753131050595,-207.934734,0.00019973,2]
[373865970,1753131050605,-4955.0,0.00019978,2]
[373865972,1753131050614,-2281.20969444,0.00019988,2]
[373865974,1753131050624,-151.0,0.0001999,2]
[373865976,1753131050634,-207.934734,0.0001999,2]
[373865978,1753131050644,-207.934734,0.0001999,2]
[373865980,1753131050655,-151.0,0.0001999,2]
[373865981,1753131050664,-209.64576,0.0001999,2]
[373865983,1753131050673,-151.0,0.0001999,2]
[373865984,1753131050683,-151.0,0.0001999,2]
[373865986,1753131050693,-460.0,0.00019991,2]
[373865988,1753131050703,-2633.81,0.00019992,2]
[373865990,1753131050722,-460.0,0.00019992,2]
[373865992,1753131050733,-460.0,0.00019992,2]
[373865994,1753131050743,-1680.81,0.00019992,2]
[373865996,1753131050752,-460.0,0.00019992,2]
[373865998,1753131050762,-786.93,0.00019992,2]
[373865999,1753131050772,-460.0,0.00019992,2]
[373866001,1753131050782,-460.0,0.00019992,2]
[373866003,1753131050792,-460.0,0.00019992,2]
[373866005,1753131050803,-548.72,0.00019994,2]
[373866007,1753131050813,-460.0,0.00019994,2]
[373866008,1753131050823,-562.22978227,0.00019994,2]
[373866010,1753131050832,-460.0,0.00019994,2]
[373866012,1753131050842,-444.56,0.00019994,2]
[373866014,1753131050852,-460.0,0.00019994,2]
[373866015,1753131050862,-460.0,0.00019994,2]
[373866017,1753131050872,-460.0,0.00019994,2]
[373866019,1753131050882,-460.0,0.00019994,2]
[373866021,1753131050892,-460.0,0.00019994,2]
[373866023,1753131050904,-460.0,0.00019994,2]
[373866024,1753131050913,-2256.48,0.00019994,2]
[373866026,1753131050923,-460.0,0.00019994,2]
[373866028,1753131050933,-460.0,0.00019994,2]
[373866030,1753131050942,-460.0,0.00019994,2]
[373866032,1753131050951,-1016.39,0.00019994,2]
[373866033,1753131050960,-460.0,0.00019994,2]
[373866035,1753131050970,-1644.1,0.00019994,2]
[373866037,1753131050980,-460.0,0.00019994,2]
[373866039,1753131050989,-460.0,0.00019994,2]
[373866041,1753131050999,-460.0,0.00019994,2]
[373866043,1753131051008,-460.0,0.00019994,2]
[373866044,1753131051018,-438.07824149,0.00019996,2]
[373866046,1753131051028,-154.642162,0.00019996,2]
[373866048,1753131051038,-154.642162,0.00019996,2]
[373866050,1753131051047,-460.0,0.00019996,2]
[373866052,1753131051057,-460.0,0.00019996,2]
[373866054,1753131051066,-460.0,0.00019996,2]
[373866055,1753131051075,-460.0,0.00019996,2]
[373866057,1753131051085,-460.0,0.00019996,2]
[373866059,1753131051095,-1113.78,0.00019996,2]
[373866061,1753131051105,-874.97,0.00019996,2]
[373866063,1753131051114,-460.0,0.00019996,2]
[373866065,1753131051124,-4955.0,0.00019996,2]
[373866066,1753131051134,-460.0,0.00019997,2]
[373866068,1753131051143,-460.0,0.00019997,2]
[373866070,1753131051155,-460.0,0.00019997,2]
[373866072,1753131051167,-460.0,0.00019997,2]
[373866073,1753131051179,-460.0,0.00019997,2]
[373866075,1753131051189,-460.0,0.00019997,2]
[373866077,1753131051199,-460.0,0.00019997,2]
[373866079,1753131051208,-582.66,0.00019997,2]
[373866081,1753131051220,-472.58,0.00019997,2]
[373866083,1753131051229,-460.0,0.00019997,2]
[373866084,1753131051239,-393.66112447,0.00019997,2]
[373866086,1753131051249,-460.0,0.00019997,2]
[373866088,1753131051259,-1192.16,0.00019997,2]
[373866090,1753131051268,-460.0,0.00019997,2]
[373866092,1753131051278,-500.0,0.00019998,2]
[373866094,1753131051287,-151.51515152,0.0002,2]
[373866095,1753131051296,-300.40023785,0.0002,2]
[373866097,1753131051306,-160.0,0.0002,7]
[373866099,1753131051315,-151.0,0.00020029,2]
[373866101,1753131051325,-151.0,0.00020029,2]
[373866103,1753131051334,-2611.55,0.00020029,2]
[373866105,1753131051344,-547.75,0.00020029,2]
[373866106,1753131051353,-151.0,0.0002003,2]
[373866108,1753131051362,-207.934734,0.00020032,2]
[373866110,1753131051372,-207.934734,0.00020032,2]
[373866112,1753131051381,-1281.42,0.00020032,2]
[373866114,1753131051391,-460.0,0.00020032,2]
[373866116,1753131051400,-1068.78,0.00020032,2]
[373866117,1753131051410,-667.47,0.00020032,2]
[373866119,1753131051420,-806.23,0.00020032,2]
[373866121,1753131051429,-274.0,0.00020091,2]
[373866123,1753131051438,-6460.29187704,0.00020107,2]
[373866125,1753131051447,-274.0,0.00020109,2]
[373866126,1753131051457,-207.934734,0.0002011,2]
[373866128,1753131051466,-207.934734,0.0002011,2]
[373866130,1753131051475,-5888.0,0.0002011,2]
[373866132,1753131051485,-528.53,0.00020184,2]
[373866134,1753131051494,-227.21991601,0.00020184,2]
[373866136,1753131051504,-103.49324498,0.00020184,2]
[373866148,1753131051632,-1021.61675502,0.00020184,2]
[373866157,1753131051727,-390.686184,0.00020188,8]
[373866159,1753131051738,-151.0,0.000202,3]
[373866161,1753131051747,-274.0,0.00020228,2]
[373866163,1753131051757,-287.99931746,0.0002023,2]